fUST/lending_fUST_20251229
["ID","MTS","AMOUNT","RATE_DAILY","PERIOD"]
[400012296,1767018567890,-9670.16,0.000257,2]
[400012297,1767018567942,-350.0,0.00025753,2]
[400012298,1767018567997,-306.67725852,0.0002576,24]
[400012299,1767018568067,-174.34699386,0.00025789,24]
[400012300,1767018568136,-306.67725852,0.00025906,26]
[400012301,1767018568212,-39739.46238978,0.00026,10]
[400012302,1767018568283,-529.20549117,0.00026,2]
[400012303,1767018568357,-19900.0,0.00026,2]
[400012304,1767018568409,-161.0,0.00026,5]
[400012305,1767018568460,-342.99618875,0.00026,2]
[400012306,1767018568518,-150.0,0.00026,2]
[400012307,1767018568577,-22653.41230317,0.00026,30]
[400012308,1767018568638,-306.67725852,0.00026051,28]
[400012309,1767018568690,-2000.0,0.00026111,7]
[400012310,1767018568741,-194.43025165,0.0002616,2]
[400012311,1767018568791,-172.76,0.000263,2]
[400012312,1767018568841,-363.90677365,0.00026301,18]
[400012313,1767018568889,-450.0,0.00026301,2]
[400012314,1767018568947,-175.0,0.00026301,20]
[400012315,1767018569008,-1668.55,0.000266,7]
[400012316,1767018569061,-2000.0,0.00026667,7]
[400012317,1767018569118,-460.425667,0.00026676,2]
[400012318,1767018569176,-156.66,0.000268,7]
[400012319,1767018569236,-161.39,0.000268,7]
[400012320,1767018569296,-9670.16,0.000268,2]
[400012321,1767018569355,-550.0,0.00026849,2]
[400012322,1767018569414,-363.90677365,0.00026915,20]
[400012323,1767018569469,-1044.58115682,0.00027,5]
[400012324,1767018569527,-2206.13,0.00027,14]
[400012325,1767018569582,-428.0,0.000272,2]
[400012326,1767018569637,-2000.0,0.00027222,7]
[400012327,1767018569693,-1000.0,0.00027227,30]
[400012328,1767018569750,-1000.0,0.00027227,30]
[400012329,1767018569807,-397.67002813,0.00027272,2]
[400012330,1767018569866,-172.76,0.000273,2]
[400012331,1767018569918,-568.68452598,0.0002739,7]
[400012332,1767018569970,-150.0,0.0002739,2]
[400012333,1767018570026,-12667.999999,0.0002739,2]
[400012334,1767018570085,-223.7001258,0.00027397,2]
[400012335,1767018570141,-650.0,0.00027397,5]
[400012336,1767018570195,-403.601255,0.00027397,7]
[400012337,1767018570250,-403.601255,0.00027397,7]
[400012338,1767018570306,-403.601255,0.00027397,7]
[400012339,1767018570368,-403.601255,0.00027397,7]
[400012340,1767018570432,-403.601255,0.00027397,7]
[400012341,1767018570498,-403.601255,0.00027397,7]
[400012342,1767018570564,-403.601255,0.00027397,7]
[400012343,1767018570626,-403.601255,0.00027397,7]
[400012344,1767018570685,-403.601255,0.00027397,7]
[400012345,1767018570743,-403.601255,0.00027397,7]
[400012346,1767018570804,-403.601255,0.00027397,7]
[400012347,1767018570863,-403.601255,0.00027397,7]
[400012348,1767018570921,-403.601255,0.00027397,7]
[400012349,1767018570979,-403.601255,0.00027397,7]
[400012350,1767018571036,-403.601255,0.00027397,7]
[400012351,1767018571096,-403.601255,0.00027397,7]
[400012352,1767018571155,-403.601255,0.00027397,7]
[400012353,1767018571216,-403.601255,0.00027397,7]
[400012354,1767018571274,-403.601255,0.00027397,7]
[400012355,1767018571327,-403.601247,0.00027397,7]
[400012356,1767018571385,-299.0,0.00027397,2]
[400012357,1767018571443,-299.0,0.00027397,2]
[400012358,1767018571501,-299.0,0.00027397,2]
[400012359,1767018571563,-299.0,0.00027397,2]
[400012360,1767018571626,-299.0,0.00027397,2]
[400012361,1767018571688,-299.0,0.00027397,2]
[400012362,1767018571748,-299.0,0.00027397,2]
[400012363,1767018571808,-299.0,0.00027397,2]
[400012364,1767018571866,-299.0,0.00027397,2]
[400012365,1767018571924,-299.0,0.00027397,2]
[400012366,1767018571982,-299.0,0.00027397,2]
[400012367,1767018572042,-299.0,0.00027397,2]
[400012368,1767018572103,-299.0,0.00027397,2]
[400012369,1767018572166,-299.0,0.00027397,2]
[400012370,1767018572228,-299.0,0.00027397,2]
[400012371,1767018572294,-299.0,0.00027397,2]
[400012372,1767018572361,-299.0,0.00027397,2]
[400012373,1767018572430,-299.0,0.00027397,2]
[400012374,1767018572497,-299.0,0.00027397,2]
[400012375,1767018572566,-299.0,0.00027397,2]
[400012376,1767018572634,-299.0,0.00027397,2]
[400012377,1767018572720,-299.0,0.00027397,2]
[400012378,1767018572816,-299.0,0.00027397,2]
[400012379,1767018572901,-157.04098773,0.00027397,5]
[400012380,1767018573170,-500.0,0.00027397,5]
[400012381,1767018573228,-150.0,0.00027397,5]
[400012382,1767018573284,-45900.99456839,0.000275,2]
[400012383,1767018573349,-363.90677365,0.00027528,21]
[400012384,1767018573412,-1668.55,0.000276,7]
[400012385,1767018573471,-5155.54653674,0.00027657,2]
[400012386,1767018573545,-416.0,0.00027749,2]
[400012387,1767018573624,-1363.58773593,0.00027754,2]
[400012388,1767018573702,-500.0,0.0002776,5]
[400012389,1767018573784,-500.0,0.0002776,5]
[400012390,1767018573860,-1000.0,0.00027777,5]
[400012391,1767018573911,-2000.0,0.00027778,7]
[400012392,1767018573963,-750.0,0.00027945,5]
[400012393,1767018574015,-1000.0,0.00027945,5]
[400012394,1767018574066,-250.0,0.00027945,5]
[400012395,1767018574116,-500.0,0.0002796,5]
[400012396,1767018574177,-1515.53,0.00028,2]
[400012397,1767018574240,-15306.66620901,0.00028,2]
[400012398,1767018574296,-519.60661968,0.00028,2]
[400012399,1767018574349,-2003.17943425,0.00028,2]
[400012400,1767018574402,-431240.36880692,0.00028,2]
[400012401,1767018575160,300.0,0.00016965,120]
[400012402,1767018575368,300.0,0.00016965,120]
[400012403,1767018575517,300.0,0.00016965,120]
[400012404,1767018575642,300.0,0.00016965,120]
[400012405,1767018575825,300.0,0.00016965,120]
[400012406,1767018575984,300.0,0.00016965,120]
[400012407,1767018576163,300.0,0.00016965,120]
[400012408,1767018576287,300.0,0.00016965,120]
[400012409,1767018576392,300.0,0.00016965,120]
[400012410,1767018584144,-924903.08026173,0.00014447,2]
[400012411,1767018605529,979.0,0.00028429,120]
[400012412,1767018627010,300.0,0.00016104,120]
[400012413,1767018628689,257.0,0.0002843,120]
[400012414,1767018628750,200.0,0.00027,120]
[400012415,1767018628807,300.0,0.00016104,120]
[400012416,1767018629052,200.0,0.000281,120]
[400012446,1767018631503,-300.0,0.00014546,2]
[400012448,1767018631515,-541.6034007,0.00014546,2]
[400012454,1767018631564,-86.3965993,0.00014546,2]
[400012456,1767018631574,-172.0,0.00014546,2]
[400012458,1767018631584,-561.15,0.00014547,2]
[400012460,1767018631593,-561.15,0.00014547,2]
[400012462,1767018631604,-30.02848459,0.00014547,2]
[400012465,1767018631626,-531.12151541,0.00014547,2]
[400012466,1767018631635,-561.15,0.00014547,2]
[400012468,1767018631644,-561.15,0.00014547,2]
[400012470,1767018631655,-561.15,0.00015698,2]
[400012472,1767018631665,-561.15,0.00016799,2]
[400012474,1767018631675,-561.15,0.00017799,2]
[400012476,1767018631686,-561.15,0.00017799,2]
[400012478,1767018631697,-561.15,0.00017799,2]
[400012480,1767018631706,-561.15,0.00017799,2]
[400012482,1767018631717,-561.15,0.00017799,2]
[400012484,1767018631727,-561.15,0.00017799,2]
[400012486,1767018631736,-561.15,0.00017799,2]
[400012488,1767018631745,-561.15,0.00017799,2]
[400012490,1767018631754,-561.15,0.00017799,2]
[400012492,1767018631764,-561.15,0.00017999,2]
[400012494,1767018631773,-561.15,0.00017999,2]
[400012495,1767018631783,-561.15,0.00017999,2]
[400012498,1767018631796,-561.15,0.00017999,2]
[400012500,1767018631806,-561.15,0.00017999,2]
[400012502,1767018631815,-561.15,0.00017999,2]
[400012503,1767018631825,-561.15,0.00017999,2]
[400012505,1767018631834,-561.3077195,0.00017999,2]
[400012507,1767018631845,-194.55782744,0.00019178,2]
[400012509,1767018631855,-500.0,0.00019178,2]
[400012511,1767018631865,-500.0,0.00019178,2]
[400012512,1767018631875,-3466.88,0.00019178,2]
[400012513,1767018631886,-500.0,0.00019178,2]
[400012514,1767018631897,-407.39499649,0.00019178,2]
[400012515,1767018631907,-222.77933736,0.00019178,2]
[400012516,1767018631920,-500.0,0.00019452,2]
[400012517,1767018631930,-500.0,0.00019452,2]
[400012518,1767018631940,-3466.88,0.00019452,2]
[400012519,1767018631950,-500.0,0.00019452,2]
[400012520,1767018631961,-483.80290591,0.00019726,2]
[400012521,1767018631971,-188.56245677,0.00019726,2]
[400012522,1767018631981,-3466.88,0.00019726,2]
[400012523,1767018631991,-465.09067796,0.00019726,2]
[400012524,1767018632001,-3466.88,0.0002,2]
[400012525,1767018632011,-1041.66666667,0.00020002,2]
[400012526,1767018632021,-3466.88,0.00020273,2]
[400012527,1767018632031,-546.96200726,0.00020469,2]
[400012528,1767018632041,-3466.88,0.00020547,2]
[400012529,1767018632052,-3466.88,0.00020821,2]
[400012530,1767018632062,-3466.88,0.00021095,2]
[400012531,1767018632072,-3466.88,0.00021369,2]
[400012532,1767018632083,-3466.88,0.00021643,2]
[400012533,1767018632092,-3466.88,0.00021917,2]
[400012534,1767018632102,-3466.88,0.00022191,2]
[400012535,1767018632112,-893.30218118,0.00022465,2]
[400012536,1767018632125,-600.0,0.00022465,2]
[400012552,1767018635719,1383.65806,0.00027,120]
[400012553,1767018636084,1383.65806,0.000281,120]
[400012572,1767018637629,-446.01319739,0.00018154,2]
[400012573,1767018637749,-153.98680261,0.00018154,2]
[400012574,1767018637759,-720.0,0.00019969,2]
[400012575,1767018637769,-339.20146821,0.00019999,2]
[400012576,1767018637781,-160.79853179,0.00019999,2]
[400012577,1767018637791,-245.20146821,0.00019999,2]
[400012578,1767018637805,-254.79853179,0.00019999,2]
[400012579,1767018637816,-201.22561503,0.00019999,2]
[400012580,1767018637826,-500.0,0.00019999,2]
[400012581,1767018637835,-500.0,0.00019999,2]
[400012582,1767018637845,-208.65452938,0.00019999,2]
[400012583,1767018637857,-402.84982536,0.00019999,2]
[400012584,1767018637869,-97.15017464,0.00019999,2]
[400012585,1767018637879,-500.0,0.00019999,2]
[400012586,1767018637890,-864.0,0.00021966,10]
[400012587,1767018637900,-1973.57781882,0.00022465,2]
[400012588,1767018637911,-3466.88,0.00022739,2]
[400012589,1767018637921,-3466.88,0.00023013,2]
[400012590,1767018637931,-3466.88,0.00023287,2]
[400012591,1767018637940,-158.36,0.000233,2]
[400012592,1767018637952,-3466.88,0.00023561,2]
[400012593,1767018637961,-546.96200726,0.00023734,2]
[400012594,1767018637971,-1115.36684196,0.00023737,10]
[400012595,1767018637984,-849.16315804,0.00023737,10]
[400012596,1767018637994,-1132.69608497,0.00023747,2]
[400012723,1767018645188,-1518.91961997,0.00023747,2]
[400012724,1767018645250,-660.112334,0.00023747,2]
[400013947,1767018664099,-353.75419215,0.00023747,2]
[400013949,1767018664111,-691.28634424,0.00023747,2]
[400013952,1767018664123,-11680.50769719,0.00023747,2]
[400013954,1767018664136,-3466.88,0.00023835,2]
[400013956,1767018664146,-3466.88,0.00024109,2]
[400013958,1767018664156,-1000.0,0.00024163,10]
[400013960,1767018664166,-3466.88,0.00024383,2]
[400013962,1767018664176,-158.36,0.000246,2]
[400013964,1767018664185,-1702.03766043,0.00024657,2]
[400013980,1767018664329,2640.23,0.00028767,120]
[400014386,1767018826907,150.0,5.97e-05,2]
[400014387,1767018827385,150.0,6.254e-05,2]
[400014388,1767018892586,150.0,5.976e-05,2]
[400014389,1767018892999,150.0,6.261e-05,2]
[400014390,1767018912570,881.0,0.00023378,120]
[400014391,1767018913811,881.0,0.00024546,120]
[400014392,1767018915083,881.0,0.00025774,120]
[400014393,1767018916325,881.0,0.00027062,120]
[400014394,1767018917562,881.0,0.00028416,120]
[400014395,1767018936869,231.0,0.00023519,120]
[400014396,1767018938193,231.0,0.00024695,120]
[400014397,1767018939472,231.0,0.00025929,120]
[400014398,1767018940757,231.0,0.00027226,120]
[400014399,1767018942363,231.0,0.00028587,120]
[400014400,1767018996090,2000.0,0.00027705,120]
[400014401,1767018996395,2000.0,0.00027705,120]
[400014402,1767018998121,219.381,0.00027705,120]
[400014403,1767018999362,475.0,0.00027705,120]
[400014404,1767018999655,475.0,0.00027705,120]
[400014405,1767019001649,475.0,0.00027705,120]
[400014406,1767019002212,475.0,0.00027705,120]
[400014407,1767019002400,475.0,0.00027705,120]
[400014408,1767019002700,414.978,0.00027705,120]
[400014411,1767019084768,300.0,0.00013169,2]
[400014413,1767019214729,441.0,0.00023882,120]
[400014414,1767019216186,441.0,0.00025076,120]
[400014415,1767019217910,441.0,0.0002633,120]
[400014416,1767019219243,441.0,0.00027647,120]
[400014417,1767019233939,165.0,0.00023923,120]
[400014418,1767019234979,200.0,0.00027,120]
[400014419,1767019235280,388.26905,0.000281,120]
[400014420,1767019235343,165.0,0.00025119,120]
[400014421,1767019236689,165.0,0.00026375,120]
[400014422,1767019238095,165.0,0.00027694,120]
[400014424,1767019329501,180.0,0.00027705,120]
[400014425,1767019331854,180.0,0.00027705,120]
[400014426,1767019334105,180.0,0.00027705,120]
[400014427,1767019336444,180.0,0.00027705,120]
[400014428,1767019338766,180.0,0.00027705,120]
[400014429,1767019341053,180.0,0.00027705,120]
[400014430,1767019344025,180.0,0.00027705,120]
[400014431,1767019346378,180.0,0.00027705,120]
[400014432,1767019348708,180.0,0.00027705,120]
[400014433,1767019349796,2881.0,0.000287,120]
[400014434,1767019351169,180.0,0.00027705,120]
[400014435,1767019353559,160.21072988,0.00027705,120]
[400014436,1767019387962,-608.0,0.00013272,2]
[400014437,1767019387982,-200.0,0.00013272,2]
[400014438,1767019388005,-300.0,0.00013272,2]
[400014439,1767019388025,-205.79197941,0.00013272,2]
[400014440,1767019388046,-500.0,0.00013273,2]
[400014441,1767019388066,-500.0,0.00013273,2]
[400014442,1767019388089,-500.0,0.00013273,2]
[400014443,1767019388112,-500.0,0.00013273,2]
[400014444,1767019388135,-500.0,0.00013273,2]
[400014445,1767019388156,-500.0,0.00013273,2]
[400014446,1767019388178,-500.0,0.00013273,2]
[400014447,1767019388200,-186.20802059,0.00013273,2]
[400014448,1767019396390,-313.79197941,0.00013273,2]
[400014449,1767019396410,-2621.25620892,0.00013273,2]
[400014450,1767019396430,-500.0,0.00013273,2]
[400014451,1767019396620,500.0,0.00013273,2]
[400014452,1767019456096,-500.0,0.00013273,2]
[400014453,1767019456117,-500.0,0.00013273,2]
[400014454,1767019506136,500.0,0.00027397,120]
[400014455,1767019506532,500.0,0.00027534,120]
[400014456,1767019506708,500.0,0.00027671,120]
[400014457,1767019506872,500.0,0.00027808,120]
[400014458,1767019507075,500.0,0.00027945,120]
[400014459,1767019507244,500.0,0.00028082,120]
[400014460,1767019507414,500.0,0.00028219,120]
[400014461,1767019507622,604.77651557,0.00028356,120]
[400014462,1767019510199,220.0,0.00025294,120]
[400014463,1767019511575,220.0,0.00026559,120]
[400014464,1767019512926,220.0,0.00027887,120]
[400014465,1767019530100,169.0,0.00025479,120]
[400014466,1767019809903,166.0,0.0002548,120]
[400014467,1767019811383,166.0,0.00026754,120]
[400014468,1767019812511,166.0,0.00028092,120]
[400014489,1767019831995,-500.0,0.00013273,2]
[400014490,1767019832007,-500.0,0.00013273,2]
[400014491,1767019832017,-500.0,0.00013273,2]
[400014492,1767019832027,-500.0,0.00013273,2]
[400014493,1767019832036,-500.0,0.00013273,2]
[400014494,1767019832045,-282.094928,0.00013273,2]
[400014495,1767019832061,-217.905072,0.00013273,2]
[400014496,1767019832070,-592.09402311,0.00013273,2]
[400014497,1767019832082,-55.72997875,0.00013273,2]
[400014499,1767019832091,-500.0,0.00013273,2]
[400014501,1767019832102,-608.0,0.00013273,2]
[400014503,1767019832111,-41.06416633,0.00013485,2]
[400014518,1767019837896,-160.61197349,0.00013485,2]
[400014519,1767019837908,-300.0,0.00013537,2]
[400014520,1767019837920,-300.0,0.00013537,2]
[400014521,1767019837930,-300.0,0.00013537,2]
[400014522,1767019837939,-300.0,0.00013537,2]
[400014523,1767019837948,-300.0,0.00013537,2]
[400014524,1767019837959,-300.0,0.00013537,2]
[400014525,1767019837970,-300.0,0.00013537,2]
[400014526,1767019837979,-300.0,0.00013537,2]
[400014527,1767019837990,-300.0,0.00013537,2]
[400014528,1767019837999,-300.0,0.00013537,2]
[400014529,1767019838009,-300.0,0.00013537,2]
[400014530,1767019838018,-300.0,0.00013537,2]
[400014531,1767019838027,-300.0,0.00013537,2]
[400014532,1767019838037,-300.0,0.00013537,2]
[400014533,1767019838046,-300.0,0.00013537,2]
[400014534,1767019838056,-500.0,0.00013696,2]
[400014535,1767019838065,-500.0,0.00013696,2]
[400014536,1767019838075,-500.0,0.00013696,2]
[400014537,1767019838085,-500.0,0.00013696,2]
[400014538,1767019838094,-461.640956,0.00013696,2]
[400014539,1767019838103,-457.57924573,0.00013696,2]
[400014540,1767019838113,-500.0,0.00013696,2]
[400014541,1767019838122,-53.87622837,0.00013696,2]
[400014542,1767019838137,-446.12377163,0.00013696,2]
[400014543,1767019838147,-310.76137351,0.00013696,2]
[400014544,1767019838159,-1412.89765321,0.00013698,2]
[400014545,1767019838170,-8810.2,0.00013698,2]
[400014546,1767019838261,-12.17242381,0.00013698,2]
[400014547,1767019838271,-500.0,0.00013699,2]
[400014548,1767019838280,-500.0,0.00013699,2]
[400014549,1767019838289,-336.68960357,0.00013699,2]
[400014550,1767019838326,-163.31039643,0.00013699,2]
[400014551,1767019838335,-167.48824913,0.00013699,2]
[400014552,1767019838346,-415.47698484,0.00013699,2]
[400014553,1767019838356,-417.8789574,0.00013699,2]
[400014554,1767019838366,-471.98434365,0.00013699,2]
[400014578,1767019840016,-28.01565635,0.00013699,2]
[400014579,1767019840025,-150.23525516,0.00013699,2]
[400014580,1767019840035,-500.0,0.00013699,2]
[400014581,1767019840045,-499.51069666,0.00013699,2]
[400014582,1767019840054,-500.0,0.00013699,2]
[400014583,1767019840063,-500.0,0.00013699,2]
[400014584,1767019840072,-511.92200299,0.00013699,2]
[400014585,1767019840081,-500.0,0.00013699,2]
[400014586,1767019840091,-449.8875564,0.00013699,2]
[400014587,1767019840100,-5275.88070188,0.00013707,2]
[400014588,1767019840109,-600.0,0.00013807,2]
[400014589,1767019840118,-500.0,0.00013819,2]
[400014590,1767019840127,-500.0,0.00013819,2]
[400014592,1767019840137,-364.05296887,0.00013819,2]
[400014593,1767019840146,-500.0,0.00013819,2]
[400014594,1767019840155,-555.66890839,0.00013819,2]
[400014595,1767019840164,-500.0,0.00013819,2]
[400014596,1767019840173,-500.0,0.00013819,2]
[400014598,1767019840182,-500.0,0.00013819,2]
[400014600,1767019840191,-500.0,0.00013819,2]
[400014602,1767019840201,-500.0,0.00013819,2]
[400014604,1767019840210,-500.0,0.0001382,2]
[400014606,1767019840219,-500.0,0.00013821,2]
[400014608,1767019840228,-1000.0,0.00013821,2]
[400014610,1767019840237,-728.98543964,0.00013821,2]
[400014612,1767019840248,-884.26953265,0.00013821,2]
[400014614,1767019840257,-366.5612039,0.00013821,2]
[400014616,1767019840266,-1000.0,0.00013821,2]
[400014618,1767019840275,-1000.0,0.00013821,2]
[400014620,1767019840284,-1000.0,0.00013821,2]
[400014622,1767019840293,-1000000.0,0.00014147,2]
[400014624,1767019840303,-500.0,0.00014246,2]
[400014626,1767019840312,-500.0,0.00014247,2]
[400014628,1767019840322,-500.0,0.00014247,2]
[400014630,1767019840331,-1000.0,0.00014247,2]
[400014632,1767019840340,-500.0,0.00014247,2]
[400014634,1767019840349,-500.0,0.00014368,2]
[400014636,1767019840358,-286.41806807,0.00014368,2]
[400014638,1767019840368,-500.0,0.00014368,2]
[400014640,1767019840376,-500.0,0.00014446,2]
[400014642,1767019840385,-500.0,0.00014446,2]
[400014644,1767019840395,-500.0,0.00014546,2]
[400014646,1767019840404,-500.0,0.00014546,2]
[400014648,1767019840412,-500.0,0.00014546,2]
[400014650,1767019840422,-500.0,0.00014546,2]
[400014652,1767019840431,-500.0,0.00014546,2]
[400014654,1767019840440,-500.0,0.00014546,2]
[400014656,1767019840449,-275.70414348,0.00014546,2]
[400014658,1767019840458,-803.24,0.00014546,2]
[400014660,1767019840467,-500.0,0.00014546,2]
[400014662,1767019840475,-500.0,0.00014547,2]
[400014664,1767019840484,-500.0,0.00014547,2]
[400014666,1767019840493,-500.0,0.00014547,2]
[400014668,1767019840502,-500.0,0.00014547,2]
[400014670,1767019840511,-500.0,0.00014547,2]
[400014672,1767019840520,-500.0,0.00014547,2]
[400014674,1767019840529,-423.04566199,0.00014547,2]
[400014676,1767019840538,-500.0,0.00014547,2]
[400014678,1767019840547,-500.0,0.00014547,2]
[400014679,1767019840556,-500.0,0.00014547,2]
[400014681,1767019840565,-500.0,0.00014547,2]
[400014683,1767019840575,-500.0,0.00014547,2]
[400014685,1767019840584,-500.0,0.00014547,2]
[400014687,1767019840594,-500.0,0.00014547,2]
[400014689,1767019840603,-500.0,0.00014547,2]
[400014691,1767019840611,-500.0,0.00014547,2]
[400014693,1767019840625,-500.0,0.00014547,2]
[400014695,1767019840634,-568.43490835,0.00014547,2]
[400014697,1767019840646,-500.0,0.00014547,2]
[400014699,1767019840655,-500.0,0.00014547,2]
[400014701,1767019840664,-500.0,0.00014547,2]
[400014703,1767019840673,-803.24,0.00014547,2]
[400014705,1767019840682,-803.24,0.00014547,2]
[400014707,1767019840691,-803.24,0.00014547,2]
[400014709,1767019840700,-803.24,0.00014547,2]
[400014711,1767019840708,-803.24,0.00014547,2]
[400014713,1767019840718,-1000.0,0.00014724,2]
[400014715,1767019840727,-720.0,0.00015187,2]
[400014717,1767019840737,-237.97784499,0.00015485,2]
[400014719,1767019840746,-500.0,0.00015748,2]
[400014721,1767019840755,-419.34,0.00015748,2]
[400014723,1767019840764,-500.0,0.00015748,2]
[400014725,1767019840773,-803.24,0.00015748,2]
[400014727,1767019840782,-818.0442751,0.00015753,2]
[400014729,1767019840791,-168.0,0.00016162,2]
[400014731,1767019840800,-168.0,0.00016179,2]
[400014733,1767019840809,-873.22039676,0.00016524,2]
[400014735,1767019840818,-864.0,0.00016706,2]
[400014737,1767019840827,-168.0,0.00016846,2]
[400014739,1767019840837,-168.0,0.00016909,2]
[400014741,1767019840847,-168.0,0.00016981,2]
[400014743,1767019840856,-5275.88070187,0.00017071,2]
[400014745,1767019840865,-511.31418948,0.00017469,2]
[400014747,1767019840875,-500.0,0.00017469,2]
[400014749,1767019840885,-803.24,0.00017469,2]
[400014751,1767019840894,-274.27955016,0.00017485,2]
[400014753,1767019840903,-474.36,0.00017564,2]
[400014754,1767019840918,-412.346,0.00017664,2]
[400014756,1767019840931,-578.55078283,0.00017798,2]
[400014758,1767019840940,-803.24,0.00017799,2]
[400014760,1767019840950,-803.24,0.00017799,2]
[400014762,1767019840961,-803.24,0.00017799,2]
[400014764,1767019840970,-803.24,0.00017799,2]
[400014766,1767019840979,-803.24,0.00017799,2]
[400014768,1767019840988,-803.24,0.00017799,2]
[400014770,1767019840997,-803.24,0.00017799,2]
[400014772,1767019841006,-803.24,0.00017799,2]
[400014774,1767019841015,-803.24,0.00017799,2]
[400014776,1767019841024,-104974.32011663,0.000178,3]
[400014778,1767019841035,-803.24,0.00017823,2]
[400014780,1767019841044,-160.0,0.0001784,2]
[400014782,1767019841053,-803.24,0.00017999,2]
[400014784,1767019841063,-803.24,0.00017999,2]
[400014786,1767019841072,-803.24,0.00017999,2]
[400014788,1767019841081,-803.24,0.00017999,2]
[400014790,1767019841090,-803.24,0.00017999,2]
[400014792,1767019841099,-803.3449749,0.00017999,2]
[400014794,1767019841108,-1000.0,0.00018377,2]
[400014796,1767019841117,-260.0,0.00018388,2]
[400014798,1767019841126,-26243.57,0.00018878,3]
[400014800,1767019841136,-360.0,0.00018936,2]
[400014802,1767019841145,-888.19,0.00019168,3]
[400014804,1767019841157,-444.1,0.00019168,3]
[400014806,1767019841166,-222.05,0.00019168,3]
[400014808,1767019841175,-666.16,0.00019168,3]
[400014810,1767019841184,-580.76,0.00019177,2]
[400014812,1767019841193,-333.76916282,0.00019178,2]
[400014814,1767019841202,-356.83985831,0.00019178,2]
[400014816,1767019841211,-330.97691951,0.00019178,2]
[400014818,1767019841221,-494.87889882,0.00019178,2]
[400014820,1767019841231,-169.7444623,0.00019178,2]
[400014822,1767019841240,-1000.0,0.00019178,2]
[400014824,1767019841249,-220.40876257,0.00019178,2]
[400014826,1767019841258,-240.09370217,0.00019178,2]
[400014828,1767019841268,-486.31154178,0.00019178,2]
[400014830,1767019841277,-225.77006582,0.00019178,2]
[400014832,1767019841286,-500.0,0.00019178,2]
[400014834,1767019841295,-500.0,0.00019178,2]
[400014836,1767019841304,-209.08726671,0.00019178,2]
[400014838,1767019841315,-497.87877484,0.00019178,2]
[400014840,1767019841324,-227.78362903,0.00019178,2]
[400014841,1767019841333,-488.92415349,0.00019178,2]
[400014843,1767019841344,-392.55406506,0.00019178,2]
[400014845,1767019841354,-361.51873115,0.00019178,2]
[400014847,1767019841363,-415.47903261,0.00019178,2]
[400014849,1767019841373,-296.20535928,0.00019178,2]
[400014851,1767019841383,-237.34653622,0.00019178,2]
[400014853,1767019841392,-197.12896296,0.00019178,2]
[400014855,1767019841401,-289.73431471,0.00019178,2]
[400014857,1767019841413,-244.31159298,0.00019178,2]
[400014859,1767019841422,-415.36593718,0.00019178,2]
[400014861,1767019841431,-284.44472802,0.00019178,2]
[400014862,1767019841441,-241.72242359,0.00019178,2]
[400014864,1767019841450,-438.8658737,0.00019178,2]
[400014866,1767019841460,-216.23520641,0.00019178,2]